[Event "17th Aeroflot Open-A 2019"]
[Site "Moscow"]
[Date "2019.02.22"]
[Round "3.13"]
[White "Debashis, Das"]
[Black "Sarana, Alexey"]
[Result "1/2-1/2"]
[ECO "E49"]
[WhiteElo "2532"]
[BlackElo "2630"]
[Annotator "ChessBase"]
[PlyCount "82"]
[EventDate "2019.02.19"]
[EventCountry "RUS"]
[SourceTitle "playchess.com"]
[Source "ChessBase"]
[SourceQuality "1"]
[TimeControl "40/5400+30:1800+30"]

1. d4 {[%emt 0:00:00]} Nf6 {[%emt 0:00:00]} 2. c4 {[%emt 0:00:00]} e6 {[%emt 0:00:00]} 3. Nc3 {[%emt 0:00:04]} Bb4 {[%emt 0:00:05]} 4. e3 {[%emt 0:00:04]} O-O {[%emt 0:00:07]} 5. Bd3 {[%emt 0:00:02]} d5 {[%emt 0:00:18]} 6. a3 {[%emt 0:00:05]} Bxc3+ {[%emt 0:00:21]} 7. bxc3 {[%emt 0:00:08]} c5 {[%emt 0:00:04]} 8. cxd5 {[%emt 0:00:04]} exd5 {[%emt 0:00:06]} 9. Ne2 {[%emt 0:00:03]} b6 {[%emt 0:01:14]} 10. O-O {[%emt 0:00:06]} Ba6 {[%emt 0:01:02]} 11. f3 {[%emt 0:00:05]} Re8 {[%emt 0:00:21]} 12. Ng3 {[%emt 0:00:09]} Bxd3 {[%emt 0:02:14]} 13. Qxd3 {[%emt 0:00:05]} Nc6 {[%emt 0:00:06]} 14. Bb2 {[%emt 0:00:04]} Rc8 {[%emt 0:07:59]} 15. Rae1 {[%emt 0:06:32]} Qc7 {[%emt 0:22:46]} 16. e4 {[%emt 0:03:11]} Ne7 17. Rf2 {[%emt 0:10:25]} cxd4 {[%emt 0:02:01]} 18. cxd4 {[%emt 0:01:17]} Qc4 {[%emt 0:04:34]} 19. Qb1 Nd7 {[%emt 0:01:10]} 20. e5 {[%emt 0:03:09]} g6 21. Rfe2 {[%emt 0:30:04]} Nf8 {[%emt 0:03:03]} 22. Nf1 Nf5 {[%emt 0:01:44]} 23. Qd1 {[%emt 0:04:57]} Ne6 {[%emt 0:00:58]} 24. Rd2 {[%emt 0:00:22]} Rc6 {[%emt 0:05:50]} 25. Kf2 {[%emt 0:02:04]} Qb5 {[%emt 0:06:05]} 26. g4 {[%emt 0:03:42]} Nfg7 27. Kg3 {[%emt 0:01:07]} g5 {[%emt 0:05:43]} 28. h4 {[%emt 0:03:23]} h5 {[%emt 0:06:12]} 29. Ne3 {[%emt 0:00:16]} gxh4+ {[%emt 0:02:22]} 30. Kxh4 {[%emt 0:01:41]} hxg4 {[%emt 0:06:54]} 31. fxg4 {[%emt 0:05:37]} Nf8 {[%emt 0:03:33]} 32. Kg3 {[%emt 0:04:52]} Nh7 {[%emt 0:05:30]} 33. Qf3 Rd8 34. Rh1 {[%emt 0:12:32]} Ng5 {[%emt 0:00:36]} 35. Rdh2 {[%emt 0:00:06]} Kf8 {[%emt 0:00:13]} 36. a4 Qxb2 37. Rxb2 {[%emt 0:04:38]} Nxf3 {[%emt 0:05:37]} 38. Kxf3 {[%emt 0:00:16]} Rc3 39. a5 {[%emt 0:03:43]} Ne6 {[%emt 0:02:59]} 40. axb6 {[%emt 0:00:00]} Nxd4+ {[%emt 0:00:00]} 41. Kf2 {[%emt 0:03:19]} axb6 {[%emt 0:00:56]} 1/2-1/2

[Event "17th Aeroflot Open-A 2019"]
[Site "Moscow"]
[Date "2019.02.22"]
[Round "3.14"]
[White "Grachev, Boris"]
[Black "Xu, Yi"]
[Result "1/2-1/2"]
[ECO "A06"]
[WhiteElo "2626"]
[BlackElo "2520"]
[Annotator "RC"]
[PlyCount "46"]
[EventDate "2019.02.19"]
[EventCountry "RUS"]
[SourceTitle "playchess.com"]
[Source "ChessBase"]
[SourceQuality "1"]
[TimeControl "40/5400+30:1800+30"]

1. Nf3 {[%emt 0:00:00]} d5 {[%emt 0:00:00]} 2. e3 {[%emt 0:00:00]} Nf6 {[%emt 0:00:06]} 3. c4 {[%emt 0:00:00]} e6 {[%emt 0:00:06]} 4. Nc3 {[%emt 0:00:10]} b6 {[%emt 0:01:08]} 5. b3 {[%emt 0:00:26]} Bb7 {[%emt 0:00:07]} 6. Bb2 {[%emt 0:00:05]} Nbd7 {[%emt 0:00:27]} 7. d4 {[%emt 0:17:17]} a6 {[%emt 0:00:31]} 8. Bd3 {[%emt 0:01:45]} Bd6 {[%emt 0:00:18]} 9. O-O {[%emt 0:01:30]} O-O {[%emt 0:00:20]} 10. a4 {[%emt 0:11:12]} Ne4 {[%emt 0:08:00]} 11. a5 {[%emt 0:06:38]} f5 {[%emt 0:05:21]} 12. axb6 {[%emt 0:00:48]} cxb6 {[%emt 0:00:09]} 13. Qe2 {[%emt 0:00:16]} Ndf6 {[%emt 0:17:59]} 14. cxd5 {[%emt 0:05:09]} Nxc3 {[%emt 0:00:46]} 15. Bxc3 {[%emt 0:00:03]} Nxd5 {[%emt 0:00:20]} 16. Bd2 {[%emt 0:00:06]} b5 {[%emt 0:08:54]} 17. e4 {[%emt 0:02:35]} Nf4 {[%emt 0:02:14]} 18. Bxf4 {[%emt 0:00:05]} Bxf4 {[%emt 0:00:34]} 19. Rfe1 {[%emt 0:03:13]} Qd7 {[%emt 0:09:59]} 20. Rad1 {[%emt 0:03:04]} Rae8 {[%emt 0:03:04]} 21. h4 {[%emt 0:06:32]} Qf7 {[%emt 0:09:27]} 22. b4 {[%emt 0:01:20]} Qg6 {[%emt 0:04:28]} 23. Bc2 {[%emt 0:26:37]} Kh8 {[%emt 0:06:26]} 1/2-1/2

[Event "17th Aeroflot Open-A 2019"]
[Site "Moscow"]
[Date "2019.02.22"]
[Round "3.17"]
[White "Martirosyan, Haik M."]
[Black "Liu, Yan"]
[Result "1-0"]
[ECO "E21"]
[WhiteElo "2616"]
[BlackElo "2498"]
[Annotator "RC"]
[PlyCount "83"]
[EventDate "2019.02.19"]
[EventCountry "RUS"]
[SourceTitle "playchess.com"]
[Source "ChessBase"]
[SourceQuality "1"]
[TimeControl "40/5400+30:1800+30"]

1. d4 {[%emt 0:00:00]} Nf6 {[%emt 0:00:00]} 2. c4 {[%emt 0:00:00]} e6 {[%emt 0:00:29]} 3. Nf3 {[%emt 0:00:29]} b6 {[%emt 0:01:41]} 4. Nc3 {[%emt 0:02:03]} Bb4 {[%emt 0:02:06]} 5. Bg5 {[%emt 0:00:10]} Bb7 {[%emt 0:02:47]} 6. e3 {[%emt 0:00:18]} Bxc3+ {[%emt 0:04:20]} 7. bxc3 {[%emt 0:00:13]} d6 {[%emt 0:00:25]} 8. Nd2 {[%emt 0:02:40]} Qe7 {[%emt 0:11:07]} 9. f3 {[%emt 0:03:39]} h6 {[%emt 0:00:42]} 10. Bh4 {[%emt 0:00:28]} e5 {[%emt 0:01:09]} 11. e4 {[%emt 0:07:08]} c5 {[%emt 0:06:28]} 12. Be2 {[%emt 0:02:48]} Nc6 {[%emt 0:03:15]} 13. dxc5 {[%emt 0:10:50]} dxc5 {[%emt 0:03:37]} 14. Nf1 {[%emt 0:00:07]} g5 {[%emt 0:12:45]} 15. Bf2 {[%emt 0:02:16]} Qd7 {[%emt 0:00:29]} 16. Qc2 {[%emt 0:01:47]} O-O-O {[%emt 0:00:25]} 17. Ne3 {[%emt 0:01:32]} Na5 {[%emt 0:01:18]} 18. Rb1 {[%emt 0:05:52]} Ba6 {[%emt 0:04:47]} 19. Nd5 {[%emt 0:02:39]} Nxd5 {[%emt 0:09:16]} 20. cxd5 {[%emt 0:00:26]} Bc4 {[%emt 0:05:17]} 21. Bxc4 {[%emt 0:07:09]} Nxc4 {[%emt 0:00:06]} 22. Qb3 {[%emt 0:01:03]} Na5 {[%emt 0:01:35]} 23. Qa3 {[%emt 0:00:34]} Qc7 {[%emt 0:03:01]} 24. O-O {[%emt 0:01:13]} Rd7 {[%emt 0:03:11]} 25. Qa4 {[%emt 0:04:29]} Kd8 {[%emt 0:07:59]} 26. c4 {[%emt 0:04:42]} Ke7 {[%emt 0:04:53]} 27. Be1 {[%emt 0:02:30]} Rb8 {[%emt 0:02:55]} 28. Bxa5 {[%emt 0:02:50]} bxa5 {[%emt 0:00:04]} 29. Rxb8 {[%emt 0:00:21]} Qxb8 {[%emt 0:00:04]} 30. Qxa5 {[%emt 0:00:16]} Qb6 {[%emt 0:02:37]} 31. Qxb6 {[%emt 0:17:24]} axb6 {[%emt 0:00:01]} 32. Rb1 {[%emt 0:00:11]} Rb7 {[%emt 0:00:10]} 33. Kf2 {[%emt 0:00:52]} Kd7 {[%emt 0:02:17]} 34. Kg3 {[%emt 0:01:17]} h5 {[%emt 0:01:39]} 35. h4 {[%emt 0:00:18]} f6 {[%emt 0:02:44]} 36. hxg5 {[%emt 0:02:12]} fxg5 {[%emt 0:00:02]} 37. Rh1 {[%emt 0:01:40]} h4+ {[%emt 0:00:07]} 38. Kg4 {[%emt 0:00:09]} b5 {[%emt 0:00:20]} 39. cxb5 {[%emt 0:01:39]} Rxb5 {[%emt 0:00:21]} 40. Kxg5 {[%emt 0:00:00]} c4 {[%emt 0:00:00]} 41. Kf5 {[%emt 0:01:24]} Kd6 {[%emt 0:04:25]} 42. Rxh4 {[%emt 0:01:00] Kxd5} 1-0

[Event "17th Aeroflot Open-A 2019"]
[Site "Moscow"]
[Date "2019.02.22"]
[Round "3.19"]
[White "Abdusattorov, Nodirbek"]
[Black "Kovalev, Vladislav"]
[Result "1-0"]
[ECO "C95"]
[WhiteElo "2560"]
[BlackElo "2703"]
[Annotator "RC"]
[PlyCount "91"]
[EventDate "2019.02.19"]
[EventCountry "RUS"]
[SourceTitle "playchess.com"]
[Source "ChessBase"]
[SourceQuality "1"]
[TimeControl "40/5400+30:1800+30"]

1. e4 {[%emt 0:00:00]} e5 {[%emt 0:00:00]} 2. Nf3 {[%emt 0:00:00]} Nc6 {[%emt 0:00:00]} 3. Bb5 {[%emt 0:00:17]} a6 {[%emt 0:00:00]} 4. Ba4 {[%emt 0:00:06]} Nf6 {[%emt 0:00:00]} 5. O-O {[%emt 0:00:08]} Be7 {[%emt 0:00:00]} 6. Re1 {[%emt 0:00:08]} b5 {[%emt 0:00:00]} 7. Bb3 {[%emt 0:00:07]} d6 {[%emt 0:00:00]} 8. c3 {[%emt 0:00:11]} O-O {[%emt 0:00:00]} 9. h3 {[%emt 0:00:05]} Nb8 {[%emt 0:00:10]} 10. d4 {[%emt 0:00:09]} Nbd7 {[%emt 0:00:03]} 11. c4 {[%emt 0:00:06]} c6 {[%emt 0:03:17]} 12. Nc3 {[%emt 0:02:08]} b4 {[%emt 0:02:08]} 13. Na4 {[%emt 0:00:44]} c5 {[%emt 0:00:07]} 14. d5 {[%emt 0:00:15]} Re8 {[%emt 0:11:33]} 15. Bc2 {[%emt 0:01:46]} Nf8 {[%emt 0:03:11]} 16. b3 {[%emt 0:01:21]} Ng6 {[%emt 0:00:12]} 17. Nb2 {[%emt 0:01:02]} Bd7 {[%emt 0:02:15]} 18. a3 {[%emt 0:06:39]} a5 {[%emt 0:00:47]} 19. Ra2 {[%emt 0:00:18]} h6 {[%emt 0:01:24]} 20. Be3 {[%emt 0:03:17]} Nh7 {[%emt 0:05:19]} 21. Qd2 {[%emt 0:06:58]} Rb8 {[%emt 0:11:30]} 22. axb4 {[%emt 0:01:51]} axb4 {[%emt 0:00:09]} 23. Rea1 {[%emt 0:00:58]} Ng5 {[%emt 0:00:36]} 24. Nxg5 {[%emt 0:02:16]} hxg5 {[%emt 0:03:55]} 25. Bd1 {[%emt 0:02:18]} Nf4 {[%emt 0:02:05]} 26. Bg4 {[%emt 0:02:12]} g6 {[%emt 0:01:43]} 27. Ra7 {[%emt 0:09:25]} f5 {[%emt 0:03:29]} 28. Bf3 {[%emt 0:02:24]} Qc8 {[%emt 0:03:49]} 29. Nd3 {[%emt 0:03:05]} Nxd3 {[%emt 0:27:17]} 30. Qxd3 {[%emt 0:00:16]} f4 {[%emt 0:00:05]} 31. Bxc5 {[%emt 0:10:13]} Qxc5 {[%emt 0:05:59]} 32. Rxd7 {[%emt 0:00:46]} Bd8 {[%emt 0:01:04]} 33. Qe2 {[%emt 0:05:17]} Re7 {[%emt 0:02:46]} 34. Rxe7 {[%emt 0:02:15]} Bxe7 {[%emt 0:00:10]} 35. Ra6 {[%emt 0:02:40]} g4 {[%emt 0:08:31]} 36. Bxg4 {[%emt 0:01:05]} Bh4 {[%emt 0:00:01]} 37. Ra2 {[%emt 0:05:09]} Kg7 {[%emt 0:00:57]} 38. Be6 {[%emt 0:05:19]} f3 {[%emt 0:02:13]} 39. gxf3 {[%emt 0:00:27]} Bg5 {[%emt 0:00:24]} 40. Ra6 {[%emt 0:00:00]} Bf4 {[%emt 0:00:00]} 41. Qa2 {[%emt 0:07:28]} Qc7 {[%emt 0:05:36]} 42. Qa4 {[%emt 0:02:12]} Rb6 {[%emt 0:03:07]} 43. Qa5 {[%emt 0:00:32]} Rb7 {[%emt 0:00:50]} 44. Qxc7+ {[%emt 0:00:23]} Rxc7 {[%emt 0:00:01]} 45. Rxd6 {[%emt 0:00:29]} Bg5 {[%emt 0:00:07]} 46. Ra6 {[%emt 0:00:17]} 1-0

[Event "17th Aeroflot Open-A 2019"]
[Site "Moscow"]
[Date "2019.02.22"]
[Round "3.22"]
[White "Maghsoodloo, Parham"]
[Black "Ghaem Maghami, Ehsan"]
[Result "1/2-1/2"]
[ECO "A06"]
[WhiteElo "2666"]
[BlackElo "2540"]
[Annotator "ChessBase"]
[PlyCount "47"]
[EventDate "2019.02.19"]
[EventCountry "RUS"]
[SourceTitle "playchess.com"]
[Source "ChessBase"]
[SourceQuality "1"]
[TimeControl "40/5400+30:1800+30"]

1. Nf3 {[%emt 0:04:20]} d5 {[%emt 0:02:47]} 2. g3 {[%emt 0:00:42]} g6 {[%emt 0:00:16]} 3. Bg2 {[%emt 0:00:34]} Bg7 {[%emt 0:00:15]} 4. O-O {[%emt 0:00:27]} e5 {[%emt 0:03:59]} 5. d3 {[%emt 0:00:07]} Nc6 {[%emt 0:01:17]} 6. c3 {[%emt 0:01:08]} Nge7 {[%emt 0:01:31]} 7. Qc2 {[%emt 0:00:28]} O-O {[%emt 0:05:15]} 8. e4 {[%emt 0:00:13]} a5 {[%emt 0:00:44]} 9. a4 {[%emt 0:00:05]} h6 {[%emt 0:00:09]} 10. Na3 {[%emt 0:00:05]} Be6 {[%emt 0:00:16]} 11. Nb5 {[%emt 0:02:13]} Qd7 {[%emt 0:04:34]} 12. exd5 {[%emt 0:16:12]} Nxd5 {[%emt 0:04:13]} 13. b3 {[%emt 0:06:12]} Rfd8 {[%emt 0:12:36]} 14. Bb2 {[%emt 0:21:57]} Bh3 {[%emt 0:05:35]} 15. Bxh3 {[%emt 0:05:03]} Qxh3 {[%emt 0:00:09]} 16. Qe2 {[%emt 0:00:53]} Rd7 {[%emt 0:05:20]} 17. Rfe1 {[%emt 0:03:04]} Rad8 {[%emt 0:01:57]} 18. Rad1 {[%emt 0:01:44]} g5 {[%emt 0:06:30]} 19. Nd2 {[%emt 0:03:50]} b6 {[%emt 0:13:08]} 20. Nc4 {[%emt 0:03:14]} Qf5 {[%emt 0:09:56]} 21. Qe4 {[%emt 0:02:20]} Nde7 {[%emt 0:01:11]} 22. Qxf5 {[%emt 0:00:15]} Nxf5 {[%emt 0:00:08]} 23. Kf1 {[%emt 0:00:53]} f6 {[%emt 0:03:30]} 24. Ke2 {[%emt 0:01:25]} 1/2-1/2

[Event "17th Aeroflot Open-A 2019"]
[Site "Moscow"]
[Date "2019.02.22"]
[Round "3.23"]
[White "Tsydypov, Zhamsaran"]
[Black "Anton Guijarro, David"]
[Result "1/2-1/2"]
[ECO "C45"]
[WhiteElo "2547"]
[BlackElo "2642"]
[Annotator "ChessBase"]
[PlyCount "75"]
[EventDate "2019.02.19"]
[EventCountry "RUS"]
[SourceTitle "playchess.com"]
[Source "ChessBase"]
[SourceQuality "1"]
[TimeControl "40/5400+30:1800+30"]

1. e4 {[%emt 0:02:42]} e5 {[%emt 0:00:00]} 2. Nf3 {[%emt 0:01:10]} Nc6 {[%emt 0:00:17]} 3. d4 {[%emt 0:00:40]} exd4 {[%emt 0:00:18]} 4. Nxd4 {[%emt 0:00:08]} Nf6 {[%emt 0:00:26]} 5. Nxc6 {[%emt 0:01:20]} bxc6 {[%emt 0:00:12]} 6. e5 {[%emt 0:00:18]} Qe7 {[%emt 0:00:50]} 7. Qe2 {[%emt 0:00:38]} Nd5 {[%emt 0:00:12]} 8. c4 {[%emt 0:04:01]} Ba6 {[%emt 0:01:33]} 9. Nd2 {[%emt 0:00:13]} g6 {[%emt 0:00:41]} 10. Nf3 {[%emt 0:00:22]} Qb4+ {[%emt 0:01:20]} 11. Kd1 {[%emt 0:00:05]} Ne7 {[%emt 0:01:08]} 12. Bg5 {[%emt 0:01:13]} Bg7 {[%emt 0:00:51]} 13. Qd2 {[%emt 0:07:47]} Qxd2+ {[%emt 0:00:11]} 14. Bxd2 {[%emt 0:03:58]} c5 {[%emt 0:09:12]} 15. Bd3 {[%emt 0:01:57]} Bb7 {[%emt 0:03:26]} 16. Re1 {[%emt 0:02:13]} O-O {[%emt 0:06:32]} 17. Be3 {[%emt 0:06:44]} d6 {[%emt 0:05:06]} 18. exd6 {[%emt 0:09:55]} cxd6 {[%emt 0:00:43]} 19. Bxc5 {[%emt 0:00:39]} dxc5 {[%emt 0:00:51]} 20. Rxe7 {[%emt 0:00:04]} Bxf3+ {[%emt 0:03:32]} 21. gxf3 {[%emt 0:00:06]} Rfe8 {[%emt 0:13:25]} 22. Rxe8+ {[%emt 0:10:32]} Rxe8 {[%emt 0:00:05]} 23. Be4 {[%emt 0:02:50]} Bd4 {[%emt 0:03:18]} 24. Rb1 {[%emt 0:05:47]} Rb8 {[%emt 0:14:10]} 25. Ke2 {[%emt 0:02:50]} Rxb2+ {[%emt 0:02:32]} 26. Rxb2 {[%emt 0:00:09]} Bxb2 {[%emt 0:00:05]} 27. Kd3 {[%emt 0:06:58]} Be5 {[%emt 0:04:31]} 28. h3 {[%emt 0:01:04]} Kf8 {[%emt 0:05:26]} 29. Kc2 {[%emt 0:01:14]} Ke7 {[%emt 0:00:28]} 30. Kb3 {[%emt 0:00:11]} Kd6 {[%emt 0:01:58]} 31. Ka4 {[%emt 0:05:03]} Bc3 {[%emt 0:00:34]} 32. Kb5 {[%emt 0:00:23]} a5 {[%emt 0:00:31]} 33. Bd5 {[%emt 0:01:37]} f6 {[%emt 0:00:59]} 34. f4 {[%emt 0:01:50]} h6 {[%emt 0:01:53]} 35. h4 {[%emt 0:05:41]} g5 {[%emt 0:01:30]} 36. fxg5 {[%emt 0:00:20]} fxg5 {[%emt 0:00:06]} 37. hxg5 {[%emt 0:00:06]} hxg5 {[%emt 0:00:05]} 38. f3 {[%emt 0:00:04]} 1/2-1/2

[Event "17th Aeroflot Open-A 2019"]
[Site "Moscow"]
[Date "2019.02.22"]
[Round "3.26"]
[White "Xu, Yinglun"]
[Black "Alekseenko, Kirill"]
[Result "1/2-1/2"]
[ECO "D80"]
[WhiteElo "2512"]
[BlackElo "2634"]
[Annotator "RC"]
[PlyCount "76"]
[EventDate "2019.02.19"]
[EventCountry "RUS"]
[SourceTitle "playchess.com"]
[Source "ChessBase"]
[SourceQuality "1"]
[TimeControl "40/5400+30:1800+30"]

1. d4 Nf6 {[%emt 0:01:28]} 2. c4 {[%emt 0:00:00]} g6 {[%emt 0:00:28]} 3. Nc3 {[%emt 0:00:34]} d5 {[%emt 0:00:06]} 4. Bg5 {[%emt 0:00:41]} Ne4 {[%emt 0:00:40]} 5. Bh4 {[%emt 0:00:42]} Nxc3 {[%emt 0:00:34]} 6. bxc3 {[%emt 0:00:07]} dxc4 {[%emt 0:00:25]} 7. e3 {[%emt 0:00:25]} Be6 {[%emt 0:00:24]} 8. Nf3 {[%emt 0:00:54]} Bg7 {[%emt 0:06:12]} 9. Rb1 {[%emt 0:02:12]} b6 {[%emt 0:04:30]} 10. Be2 {[%emt 0:01:05]} O-O {[%emt 0:04:01]} 11. Nd2 {[%emt 0:01:28]} Bd5 {[%emt 0:13:30]} 12. O-O {[%emt 0:05:58]} c5 {[%emt 0:02:00]} 13. dxc5 {[%emt 0:12:20]} Nd7 {[%emt 0:08:44]} 14. cxb6 {[%emt 0:09:28]} Nxb6 {[%emt 0:00:42]} 15. Qc2 {[%emt 0:06:21]} Qd6 {[%emt 0:00:08]} 16. Rb4 {[%emt 0:05:36]} Rac8 {[%emt 0:00:49]} 17. a4 {[%emt 0:02:58]} Ba8 {[%emt 0:03:19]} 18. e4 {[%emt 0:15:24]} Qe5 {[%emt 0:03:38]} 19. Rc1 {[%emt 0:08:29]} Rfd8 {[%emt 0:01:42]} 20. Nxc4 {[%emt 0:05:52]} Nxc4 {[%emt 0:02:09]} 21. Rxc4 {[%emt 0:00:06]} Rxc4 {[%emt 0:02:50]} 22. Bxc4 {[%emt 0:00:03]} Bxe4 {[%emt 0:01:08]} 23. Qe2 {[%emt 0:00:38]} Qf4 {[%emt 0:05:30]} 24. Re1 {[%emt 0:00:08]} Qxh4 {[%emt 0:00:13]} 25. g3 {[%emt 0:02:11]} Qg5 {[%emt 0:06:55]} 26. Qxe4 {[%emt 0:00:22]} e6 {[%emt 0:00:13]} 27. Re3 {[%emt 0:01:14]} Qa5 {[%emt 0:04:04]} 28. Rf3 {[%emt 0:02:18]} Rf8 {[%emt 0:05:22]} 29. Qc6 {[%emt 0:01:50]} Qb6 {[%emt 0:02:41]} 30. Qxb6 {[%emt 0:00:06]} axb6 {[%emt 0:00:27]} 31. Rd3 {[%emt 0:00:30]} g5 {[%emt 0:02:41]} 32. h3 {[%emt 0:01:53]} h5 {[%emt 0:02:06]} 33. Kg2 {[%emt 0:01:30]} Rc8 {[%emt 0:02:23]} 34. Ba6 {[%emt 0:00:04]} Rc7 {[%emt 0:00:28]} 35. Rd8+ {[%emt 0:01:00]} Bf8 {[%emt 0:00:38]} 36. Be2 {[%emt 0:00:47]} h4 {[%emt 0:01:02]} 37. gxh4 {[%emt 0:00:13]} gxh4 {[%emt 0:00:04]} 38. Rb8 {[%emt 0:01:46]} Rxc3 {[%emt 0:02:34]} 1/2-1/2

[Event "17th Aeroflot Open-A 2019"]
[Site "Moscow"]
[Date "2019.02.22"]
[Round "3.29"]
[White "Afanasiev, Nikita"]
[Black "Van Foreest, Jorden"]
[Result "1/2-1/2"]
[ECO "D10"]
[WhiteElo "2508"]
[BlackElo "2618"]
[Annotator "RC"]
[PlyCount "50"]
[EventDate "2019.02.19"]
[EventCountry "RUS"]
[SourceTitle "playchess.com"]
[Source "ChessBase"]
[SourceQuality "1"]
[TimeControl "40/5400+30:1800+30"]

1. d4 {[%emt 0:02:25]} d5 {[%emt 0:00:00]} 2. c4 {[%emt 0:00:15]} c6 {[%emt 0:00:06]} 3. cxd5 {[%emt 0:00:14]} cxd5 {[%emt 0:00:16]} 4. Bf4 {[%emt 0:00:08]} Nc6 {[%emt 0:01:12]} 5. Nc3 {[%emt 0:00:09]} Nf6 {[%emt 0:00:45]} 6. Nf3 {[%emt 0:00:21]} g6 {[%emt 0:05:18]} 7. e3 {[%emt 0:06:23]} Bg7 {[%emt 0:00:15]} 8. h3 {[%emt 0:15:24]} O-O {[%emt 0:02:53]} 9. Be2 {[%emt 0:04:29]} Ne4 {[%emt 0:00:34]} 10. Rc1 {[%emt 0:01:18]} Bf5 {[%emt 0:10:46]} 11. Qb3 {[%emt 0:03:59]} Nxc3 {[%emt 0:02:41]} 12. Rxc3 {[%emt 0:00:43]} Qd7 {[%emt 0:05:45]} 13. O-O {[%emt 0:06:15]} a6 {[%emt 0:11:01]} 14. Rfc1 {[%emt 0:05:51]} f6 {[%emt 0:02:47]} 15. Rc5 {[%emt 0:11:49]} Be6 {[%emt 0:00:26]} 16. Qb6 {[%emt 0:00:33]} Bf7 {[%emt 0:04:44]} 17. Bc7 {[%emt 0:01:45]} Rac8 {[%emt 0:03:35]} 18. Bg3 {[%emt 0:03:31]} Ra8 {[%emt 0:03:45]} 19. b4 {[%emt 0:02:35]} Rfc8 {[%emt 0:03:19]} 20. a4 {[%emt 0:00:51]} Bf8 {[%emt 0:00:42]} 21. b5 {[%emt 0:10:03]} axb5 {[%emt 0:00:09]} 22. Qxb5 {[%emt 0:00:15]} e6 {[%emt 0:03:44]} 23. R5c3 {[%emt 0:06:42]} Be8 {[%emt 0:02:24]} 24. a5 {[%emt 0:02:06]} Rd8 {[%emt 0:04:37]} 25. Qb6 {[%emt 0:02:05]} Bb4 {[%emt 0:02:46]} 1/2-1/2

[Event "17th Aeroflot Open-A 2019"]
[Site "Moscow"]
[Date "2019.02.22"]
[Round "3.30"]
[White "Tahbaz, Arash"]
[Black "Goganov, Aleksey"]
[Result "1/2-1/2"]
[ECO "C67"]
[WhiteElo "2484"]
[BlackElo "2612"]
[Annotator "ChessBase"]
[PlyCount "120"]
[EventDate "2019.02.19"]
[EventCountry "RUS"]
[SourceTitle "playchess.com"]
[Source "ChessBase"]
[SourceQuality "1"]
[TimeControl "40/5400+30:1800+30"]

1. e4 {[%emt 0:07:04]} e5 {[%emt 0:00:00]} 2. Nf3 {[%emt 0:00:05]} Nc6 {[%emt 0:00:00]} 3. Bb5 {[%emt 0:00:06]} Nf6 {[%emt 0:00:00]} 4. O-O {[%emt 0:00:05]} Nxe4 {[%emt 0:00:00]} 5. Re1 {[%emt 0:00:27]} Nd6 {[%emt 0:00:00]} 6. Nxe5 {[%emt 0:00:04]} Be7 {[%emt 0:00:01]} 7. Bf1 {[%emt 0:00:04]} Nxe5 {[%emt 0:00:09]} 8. Rxe5 {[%emt 0:00:05]} O-O {[%emt 0:00:08]} 9. d4 {[%emt 0:00:02]} Bf6 {[%emt 0:00:05]} 10. Re1 {[%emt 0:00:04]} Re8 {[%emt 0:00:19]} 11. c3 {[%emt 0:00:04]} Rxe1 {[%emt 0:00:24]} 12. Qxe1 {[%emt 0:00:02]} Ne8 {[%emt 0:00:10]} 13. d5 {[%emt 0:00:06]} d6 {[%emt 0:04:15]} 14. c4 {[%emt 0:02:39]} Qe7 {[%emt 0:04:37]} 15. Qxe7 {[%emt 0:02:28]} Bxe7 {[%emt 0:03:09]} 16. Nc3 {[%emt 0:00:13]} Bf6 {[%emt 0:02:02]} 17. Bd2 {[%emt 0:00:28]} c6 {[%emt 0:02:08]} 18. Re1 {[%emt 0:05:42]} Bd7 {[%emt 0:02:37]} 19. dxc6 {[%emt 0:05:13]} bxc6 {[%emt 0:01:36]} 20. b3 {[%emt 0:03:46]} Kf8 {[%emt 0:04:27]} 21. g3 {[%emt 0:10:03]} Bd4 {[%emt 0:04:26]} 22. Bg2 {[%emt 0:03:30]} Rc8 {[%emt 0:00:59]} 23. Na4 {[%emt 0:14:41]} h6 {[%emt 0:09:45]} 24. Rd1 {[%emt 0:07:05]} Bg4 {[%emt 0:02:02]} 25. Re1 {[%emt 0:01:23]} Bd7 {[%emt 0:00:45]} 26. h3 {[%emt 0:00:41]} c5 {[%emt 0:09:33]} 27. Nc3 {[%emt 0:00:15]} Bxc3 {[%emt 0:00:04]} 28. Bxc3 {[%emt 0:00:05]} Bc6 {[%emt 0:00:07]} 29. Bxc6 {[%emt 0:13:17]} Rxc6 {[%emt 0:00:05]} 30. f4 {[%emt 0:01:15]} Nc7 {[%emt 0:04:53]} 31. f5 {[%emt 0:01:46]} d5 {[%emt 0:01:32]} 32. Be5 {[%emt 0:00:32]} dxc4 {[%emt 0:00:25]} 33. bxc4 {[%emt 0:00:15]} f6 {[%emt 0:01:39]} 34. Bf4 {[%emt 0:01:17]} Na8 {[%emt 0:02:41]} 35. Bb8 {[%emt 0:06:01]} Nb6 {[%emt 0:03:00]} 36. Bxa7 {[%emt 0:09:08]} Nxc4 {[%emt 0:00:30]} 37. Rc1 {[%emt 0:01:56]} Rc7 {[%emt 0:00:15]} 38. Bb8 {[%emt 0:00:24]} Rb7 {[%emt 0:00:21]} 39. Bf4 {[%emt 0:01:24]} Rb4 {[%emt 0:00:26]} 40. Kf2 {[%emt 0:00:00]} Ra4 {[%emt 0:00:00]} 41. Rc2 {[%emt 0:04:26]} Ke7 {[%emt 0:02:04]} 42. Ke2 {[%emt 0:04:19]} Nd6 {[%emt 0:02:23]} 43. Rxc5 {[%emt 0:02:08]} Rxa2+ {[%emt 0:00:05]} 44. Kf3 {[%emt 0:00:04]} Ne8 {[%emt 0:02:21]} 45. Rb5 {[%emt 0:00:36]} Ra7 {[%emt 0:00:21]} 46. Rd5 {[%emt 0:08:55]} h5 {[%emt 0:01:53]} 47. Be3 {[%emt 0:01:30]} Rb7 {[%emt 0:01:59]} 48. Bc5+ {[%emt 0:00:52]} Kf7 {[%emt 0:00:05]} 49. Rd8 {[%emt 0:01:53]} Rc7 {[%emt 0:00:22]} 50. Bb4 {[%emt 0:00:03]} Rb7 {[%emt 0:00:22]} 51. Bc5 {[%emt 0:00:11]} Rc7 {[%emt 0:00:04]} 52. Be3 {[%emt 0:00:45]} Re7 {[%emt 0:00:21]} 53. g4 {[%emt 0:01:55]} hxg4+ {[%emt 0:00:44]} 54. hxg4 {[%emt 0:00:01]} g6 {[%emt 0:00:48]} 55. Bc5 {[%emt 0:00:02]} Rc7 {[%emt 0:00:56]} 56. Bb4 {[%emt 0:01:15]} gxf5 {[%emt 0:00:10]} 57. gxf5 {[%emt 0:00:02]} Rb7 {[%emt 0:00:15]} 58. Bc5 {[%emt 0:00:15]} Rc7 {[%emt 0:00:32]} 59. Rd5 {[%emt 0:00:23]} Rb7 {[%emt 0:01:05]} 60. Bd4 {[%emt 0:01:21]} Re7 {[%emt 0:00:31] Ke4} 1/2-1/2